[Event "Titled Tuesday Blitz March 01 Early 2022"]
[White "Yang, Kaiqi"]
[Black "Kukhmazov, Arsen"]
[WhiteFideId "8604398"]
[BlackFideId "24108260"]
[WhiteElo "2373"]
[BlackElo "2487"]
[Result "0-1"]
[Round "09"]
[TimeControl "180+1"]
[Date "2022.03.01"]
[WhiteClock "0:00:02"]
[BlackClock "0:00:29"]

1. c4 {[%clk 0:03:00]}  c6 {[%clk 0:02:46]} 2. d4 {[%clk 0:03:00]}  d5 {[%clk 0:02:47]} 3. cxd5 {[%clk 0:03:00]}  cxd5 {[%clk 0:02:46]} 4. Bf4 {[%clk 0:03:00]}  Qb6 {[%clk 0:02:46]} 5. Qc2 {[%clk 0:02:48]}  Nc6 {[%clk 0:02:42]} 6. e3 {[%clk 0:02:47]}  Bf5 {[%clk 0:02:42]} 7. Qxf5 {[%clk 0:01:56]}  Qxb2 {[%clk 0:02:42]} 8. Qxd5 {[%clk 0:01:44]}  e6 {[%clk 0:02:06]} 9. Qb3 {[%clk 0:01:39]}  Bb4+ {[%clk 0:01:57]} 10. Kd1 {[%clk 0:01:33]}  Qxa1 {[%clk 0:01:57]} 11. Bb5 {[%clk 0:01:29]}  a5 {[%clk 0:01:47]} 12. Nf3 {[%clk 0:00:55]}  Ne7 {[%clk 0:01:37]} 13. Ne1 {[%clk 0:00:44]}  Nd5 {[%clk 0:01:35]} 14. Nc2 {[%clk 0:00:06]}  Nc3+ {[%clk 0:01:24]} 15. Kc1 {[%clk 0:00:02]}  Nxa2+ {[%clk 0:01:21]} 16. Kd1 {[%clk 0:00:02]}  Nc3+ {[%clk 0:01:22]} 17. Kc1 {[%clk 0:00:02]}  Na2+ {[%clk 0:01:03]} 18. Kd1 {[%clk 0:00:02]}  Qxb1+ {[%clk 0:01:04]} 19. Qxb1 {[%clk 0:00:02]}  Nc3+ {[%clk 0:01:05]} 20. Kc1 {[%clk 0:00:03]}  Nxb1 {[%clk 0:01:06]} 21. Kxb1 {[%clk 0:00:03]}  O-O {[%clk 0:01:05]} 22. Nxb4 {[%clk 0:00:03]}  axb4 {[%clk 0:01:04]} 23. Kb2 {[%clk 0:00:03]}  Rfc8 {[%clk 0:01:03]} 24. Rc1 {[%clk 0:00:04]}  Na5 {[%clk 0:01:02]} 25. Rc5 {[%clk 0:00:04]}  b6 {[%clk 0:01:01]} 26. Rc7 {[%clk 0:00:03]}  h6 {[%clk 0:00:44]} 27. e4 {[%clk 0:00:03]}  g5 {[%clk 0:00:44]} 28. Bg3 {[%clk 0:00:04]}  Rxc7 {[%clk 0:00:34]} 29. Bxc7 {[%clk 0:00:03]}  Rc8 {[%clk 0:00:35]} 30. Bxb6 {[%clk 0:00:01]}  Nc4+ {[%clk 0:00:36]} 31. Bxc4 {[%clk 0:00:01]}  Rxc4 {[%clk 0:00:37]} 32. Kb3 {[%clk 0:00:01]}  Rc3+ {[%clk 0:00:36]} 33. Kxb4 {[%clk 0:00:02]}  Rc2 {[%clk 0:00:36]} 34. d5 {[%clk 0:00:02]}  Kf8 {[%clk 0:00:32]} 35. g4 {[%clk 0:00:01]}  Ke7 {[%clk 0:00:31]} 36. Bc5+ {[%clk 0:00:02]}  Kd7 {[%clk 0:00:32]} 37. Bd4 {[%clk 0:00:01]}  Kd6 {[%clk 0:00:30]} 38. Bg7 {[%clk 0:00:01]}  exd5 {[%clk 0:00:29]} 39. exd5 {[%clk 0:00:01]}  Rxf2 {[%clk 0:00:29]} 40. Bxh6 {[%clk 0:00:01]}  f6 {[%clk 0:00:30]} 41. Bg7 {[%clk 0:00:01]}  Kxd5 {[%clk 0:00:30]} 42. Kc3 {[%clk 0:00:02]}  Ke4 {[%clk 0:00:29]} 0-1


[Site "https://www.chess.com"]

[Event "Titled Tuesday Blitz March 01 Early 2022"]
[White "Yuan, Qingyu"]
[Black "Timofeev, Artyom"]
[WhiteFideId "8609772"]
[BlackFideId "4140419"]
[WhiteElo "2359"]
[BlackElo "2583"]
[Result "0-1"]
[Round "09"]
[TimeControl "180+1"]
[Date "2022.03.01"]
[WhiteClock "0:00:01"]
[BlackClock "0:00:52"]

1. e4 {[%clk 0:03:00]}  c5 {[%clk 0:02:59]} 2. Nf3 {[%clk 0:03:00]}  d6 {[%clk 0:02:59]} 3. Bb5+ {[%clk 0:03:01]}  Bd7 {[%clk 0:02:58]} 4. c4 {[%clk 0:03:01]}  Nf6 {[%clk 0:02:54]} 5. Nc3 {[%clk 0:03:00]}  Bxb5 {[%clk 0:02:54]} 6. cxb5 {[%clk 0:02:58]}  Nbd7 {[%clk 0:02:54]} 7. O-O {[%clk 0:02:54]}  e6 {[%clk 0:02:54]} 8. d4 {[%clk 0:02:47]}  cxd4 {[%clk 0:02:53]} 9. Qxd4 {[%clk 0:02:47]}  Be7 {[%clk 0:02:54]} 10. Bg5 {[%clk 0:02:33]}  h6 {[%clk 0:02:50]} 11. Bh4 {[%clk 0:02:33]}  O-O {[%clk 0:02:49]} 12. Rfd1 {[%clk 0:02:28]}  Qb6 {[%clk 0:02:35]} 13. Qd2 {[%clk 0:02:11]}  Rfd8 {[%clk 0:02:31]} 14. Qe2 {[%clk 0:02:04]}  Rac8 {[%clk 0:02:23]} 15. Rd2 {[%clk 0:01:56]}  Ne5 {[%clk 0:02:16]} 16. Nxe5 {[%clk 0:01:33]}  dxe5 {[%clk 0:02:15]} 17. Bg3 {[%clk 0:01:16]}  Rxd2 {[%clk 0:02:05]} 18. Qxd2 {[%clk 0:01:16]}  Bc5 {[%clk 0:01:41]} 19. Bxe5 {[%clk 0:00:43]}  Bxf2+ {[%clk 0:01:40]} 20. Qxf2 {[%clk 0:00:30]}  Qxf2+ {[%clk 0:01:41]} 21. Kxf2 {[%clk 0:00:30]}  Ng4+ {[%clk 0:01:41]} 22. Ke2 {[%clk 0:00:31]}  Nxe5 {[%clk 0:01:41]} 23. Rd1 {[%clk 0:00:30]}  Kf8 {[%clk 0:01:40]} 24. h3 {[%clk 0:00:21]}  Ke7 {[%clk 0:01:40]} 25. Rd4 {[%clk 0:00:18]}  b6 {[%clk 0:01:36]} 26. Ra4 {[%clk 0:00:11]}  Rc7 {[%clk 0:01:36]} 27. Kd1 {[%clk 0:00:10]}  g5 {[%clk 0:01:30]} 28. Ke2 {[%clk 0:00:10]}  h5 {[%clk 0:01:29]} 29. Ke1 {[%clk 0:00:07]}  Nd3+ {[%clk 0:01:27]} 30. Kd2 {[%clk 0:00:08]}  Nxb2 {[%clk 0:01:26]} 31. Rb4 {[%clk 0:00:08]}  Nc4+ {[%clk 0:01:26]} 32. Kd3 {[%clk 0:00:07]}  Ne5+ {[%clk 0:01:25]} 33. Kd2 {[%clk 0:00:06]}  h4 {[%clk 0:01:21]} 34. Ra4 {[%clk 0:00:05]}  Kf6 {[%clk 0:01:17]} 35. Ne2 {[%clk 0:00:05]}  Nc4+ {[%clk 0:01:11]} 36. Ke1 {[%clk 0:00:04]}  Ke5 {[%clk 0:01:08]} 37. Kf2 {[%clk 0:00:03]}  Nd6 {[%clk 0:01:04]} 38. Ke3 {[%clk 0:00:03]}  Nxb5 {[%clk 0:01:04]} 39. Rb4 {[%clk 0:00:02]}  Na3 {[%clk 0:00:57]} 40. Nd4 {[%clk 0:00:02]}  Nc2+ {[%clk 0:00:56]} 41. Nxc2 {[%clk 0:00:02]}  Rxc2 {[%clk 0:00:57]} 42. Rb5+ {[%clk 0:00:01]}  Kf6 {[%clk 0:00:57]} 43. Rb4 {[%clk 0:00:01]}  Rxa2 {[%clk 0:00:56]} 44. Kf3 {[%clk 0:00:01]}  Ra3+ {[%clk 0:00:57]} 45. Kf2 {[%clk 0:00:01]}  Ke5 {[%clk 0:00:55]} 46. Rb5+ {[%clk 0:00:02]}  Kf4 {[%clk 0:00:54]} 47. e5 {[%clk 0:00:02]}  Ra5 {[%clk 0:00:52]} 48. Rxa5 {[%clk 0:00:01]}  bxa5 {[%clk 0:00:52]} 0-1


[Site "https://www.chess.com"]

[Event "Titled Tuesday Blitz March 01 Early 2022"]
[White "Zanette, Edgard Vinicius"]
[Black "Guseva, Marina"]
[WhiteFideId "2109263"]
[BlackFideId "4149351"]
[WhiteElo "2182"]
[BlackElo "2232"]
[Result "1-0"]
[Round "09"]
[TimeControl "180+1"]
[Date "2022.03.01"]
[WhiteClock "0:00:03"]
[BlackClock "0:00:01"]

1. e4 {[%clk 0:03:00]}  c5 {[%clk 0:02:58]} 2. Nc3 {[%clk 0:02:59]}  d6 {[%clk 0:02:57]} 3. g3 {[%clk 0:02:58]}  g6 {[%clk 0:02:56]} 4. Bg2 {[%clk 0:02:58]}  Bg7 {[%clk 0:02:56]} 5. Nge2 {[%clk 0:02:57]}  Nc6 {[%clk 0:02:56]} 6. d3 {[%clk 0:02:57]}  e6 {[%clk 0:02:56]} 7. Be3 {[%clk 0:02:58]}  Nd4 {[%clk 0:02:54]} 8. Qd2 {[%clk 0:02:57]}  Ne7 {[%clk 0:02:50]} 9. Nd1 {[%clk 0:02:53]}  b5 {[%clk 0:02:45]} 10. c3 {[%clk 0:02:52]}  Nxe2 {[%clk 0:02:45]} 11. Qxe2 {[%clk 0:02:53]}  Bb7 {[%clk 0:02:44]} 12. O-O {[%clk 0:02:52]}  O-O {[%clk 0:02:43]} 13. d4 {[%clk 0:02:52]}  cxd4 {[%clk 0:02:34]} 14. cxd4 {[%clk 0:02:40]}  b4 {[%clk 0:02:29]} 15. Qd2 {[%clk 0:02:37]}  a5 {[%clk 0:02:28]} 16. Bh6 {[%clk 0:02:30]}  Qb6 {[%clk 0:02:24]} 17. Bxg7 {[%clk 0:02:29]}  Kxg7 {[%clk 0:02:24]} 18. Ne3 {[%clk 0:02:30]}  Rac8 {[%clk 0:02:19]} 19. Rac1 {[%clk 0:02:25]}  Ba6 {[%clk 0:02:11]} 20. Rfd1 {[%clk 0:02:24]}  h5 {[%clk 0:01:59]} 21. d5 {[%clk 0:02:11]}  e5 {[%clk 0:01:58]} 22. g4 {[%clk 0:02:04]}  hxg4 {[%clk 0:01:57]} 23. Nxg4 {[%clk 0:02:04]}  Ng8 {[%clk 0:01:49]} 24. Bh3 {[%clk 0:01:54]}  Rxc1 {[%clk 0:01:45]} 25. Rxc1 {[%clk 0:01:53]}  Bb5 {[%clk 0:01:43]} 26. Qg5 {[%clk 0:01:30]}  Qd4 {[%clk 0:01:33]} 27. Ne3 {[%clk 0:01:09]}  Qxe4 {[%clk 0:00:31]} 28. Nf5+ {[%clk 0:00:59]}  Kh7 {[%clk 0:00:30]} 29. Nxd6 {[%clk 0:00:49]}  Qxd5 {[%clk 0:00:29]} 30. Qh4+ {[%clk 0:00:44]}  Nh6 {[%clk 0:00:29]} 31. Qe7 {[%clk 0:00:30]}  Kg7 {[%clk 0:00:23]} 32. Re1 {[%clk 0:00:25]}  Bc6 {[%clk 0:00:17]} 33. Ne4 {[%clk 0:00:20]}  Ng8 {[%clk 0:00:14]} 34. Qh4 {[%clk 0:00:15]}  Qd8 {[%clk 0:00:13]} 35. Qg3 {[%clk 0:00:13]}  f6 {[%clk 0:00:12]} 36. Nc5 {[%clk 0:00:10]}  Bd5 {[%clk 0:00:08]} 37. Rd1 {[%clk 0:00:09]}  Qa8 {[%clk 0:00:07]} 38. Nd7 {[%clk 0:00:08]}  Rf7 {[%clk 0:00:06]} 39. Nb6 {[%clk 0:00:08]}  Qc6 {[%clk 0:00:05]} 40. Nxd5 {[%clk 0:00:08]}  Nh6 {[%clk 0:00:03]} 41. Bg2 {[%clk 0:00:08]}  Qc5 {[%clk 0:00:02]} 42. Qe3 {[%clk 0:00:08]}  Qf8 {[%clk 0:00:01]} 43. Qb6 {[%clk 0:00:04]}  Nf5 {[%clk 0:00:01]} 44. Ne3 {[%clk 0:00:03]} 1-0


[Site "https://www.chess.com"]

[Event "Titled Tuesday Blitz March 01 Early 2022"]
[White "Zhigalko, Sergei"]
[Black "Paravyan, David"]
[WhiteFideId "13502956"]
[BlackFideId "4194985"]
[WhiteElo "2924"]
[BlackElo "2984"]
[Result "0-1"]
[Round "09"]
[TimeControl "180+1"]
[Date "2022.03.01"]
[WhiteClock "0:00:10"]
[BlackClock "0:02:27"]

1. e4 {[%clk 0:03:00]}  e5 {[%clk 0:03:00]} 2. Nf3 {[%clk 0:03:01]}  Nf6 {[%clk 0:03:00]} 3. d4 {[%clk 0:02:58]}  Nxe4 {[%clk 0:03:00]} 4. Bd3 {[%clk 0:02:58]}  d5 {[%clk 0:03:00]} 5. Nxe5 {[%clk 0:02:58]}  Bd6 {[%clk 0:03:01]} 6. O-O {[%clk 0:02:58]}  O-O {[%clk 0:03:01]} 7. Nc3 {[%clk 0:02:58]}  Nxc3 {[%clk 0:03:00]} 8. bxc3 {[%clk 0:02:59]}  Nd7 {[%clk 0:03:00]} 9. Re1 {[%clk 0:02:52]}  Bxe5 {[%clk 0:02:54]} 10. dxe5 {[%clk 0:02:49]}  Re8 {[%clk 0:02:54]} 11. Bf4 {[%clk 0:02:16]}  Nc5 {[%clk 0:02:53]} 12. Qh5 {[%clk 0:02:12]}  Nxd3 {[%clk 0:02:53]} 13. cxd3 {[%clk 0:02:13]}  Qd7 {[%clk 0:02:53]} 14. h3 {[%clk 0:01:25]}  Qf5 {[%clk 0:02:52]} 15. Qf3 {[%clk 0:01:25]}  Bd7 {[%clk 0:02:49]} 16. Rad1 {[%clk 0:01:13]}  Rad8 {[%clk 0:02:44]} 17. Re3 {[%clk 0:01:06]}  d4 {[%clk 0:02:39]} 18. cxd4 {[%clk 0:00:55]}  Bc6 {[%clk 0:02:40]} 19. Qg3 {[%clk 0:00:40]}  Rxd4 {[%clk 0:02:40]} 20. Bg5 {[%clk 0:00:35]}  Qg6 {[%clk 0:02:39]} 21. Rde1 {[%clk 0:00:24]}  h6 {[%clk 0:02:37]} 22. Bh4 {[%clk 0:00:22]}  Rxh4 {[%clk 0:02:31]} 23. e6 {[%clk 0:00:17]}  Qxg3 {[%clk 0:02:27]} 24. fxg3 {[%clk 0:00:15]}  Rd4 {[%clk 0:02:25]} 25. exf7+ {[%clk 0:00:14]}  Kxf7 {[%clk 0:02:26]} 26. Rf1+ {[%clk 0:00:15]}  Kg8 {[%clk 0:02:26]} 27. Rxe8+ {[%clk 0:00:09]}  Bxe8 {[%clk 0:02:27]} 28. Re1 {[%clk 0:00:10]} 0-1


[Site "https://www.chess.com"]

[Event "Titled Tuesday Blitz March 01 Early 2022"]
[White "Ahmadzada, Ahmad"]
[Black "Kretov, Evgenij"]
[WhiteFideId "13413007"]
[BlackFideId "4167821"]
[WhiteElo "2228"]
[BlackElo "2303"]
[Result "1-0"]
[Round "10"]
[TimeControl "180+1"]
[Date "2022.03.01"]
[WhiteClock "0:00:03"]
[BlackClock "0:00:10"]

1. Nf3 {[%clk 0:03:00]}  c5 {[%clk 0:03:00]} 2. g3 {[%clk 0:03:00]}  b6 {[%clk 0:03:00]} 3. Bg2 {[%clk 0:03:00]}  Bb7 {[%clk 0:03:01]} 4. O-O {[%clk 0:03:01]}  Nf6 {[%clk 0:03:01]} 5. c4 {[%clk 0:03:00]}  e6 {[%clk 0:03:01]} 6. Nc3 {[%clk 0:03:00]}  Be7 {[%clk 0:03:01]} 7. Re1 {[%clk 0:03:01]}  d6 {[%clk 0:03:00]} 8. e4 {[%clk 0:03:00]}  a6 {[%clk 0:03:00]} 9. d4 {[%clk 0:03:00]}  cxd4 {[%clk 0:03:01]} 10. Nxd4 {[%clk 0:03:01]}  Qc7 {[%clk 0:03:01]} 11. b3 {[%clk 0:03:00]}  Nbd7 {[%clk 0:03:01]} 12. Bb2 {[%clk 0:03:00]}  O-O {[%clk 0:03:00]} 13. Rc1 {[%clk 0:03:01]}  Rac8 {[%clk 0:03:01]} 14. g4 {[%clk 0:02:54]}  g6 {[%clk 0:02:56]} 15. h3 {[%clk 0:02:23]}  Rfd8 {[%clk 0:02:53]} 16. Qd2 {[%clk 0:02:21]}  Bf8 {[%clk 0:02:51]} 17. f4 {[%clk 0:02:15]}  e5 {[%clk 0:02:50]} 18. Nde2 {[%clk 0:02:07]}  exf4 {[%clk 0:02:45]} 19. Nxf4 {[%clk 0:02:05]}  Ne5 {[%clk 0:02:43]} 20. g5 {[%clk 0:02:02]}  Nfd7 {[%clk 0:02:40]} 21. Rf1 {[%clk 0:01:56]}  Bc6 {[%clk 0:02:34]} 22. Nfd5 {[%clk 0:01:48]}  Qb7 {[%clk 0:02:34]} 23. Nb4 {[%clk 0:01:25]}  b5 {[%clk 0:02:31]} 24. Nxc6 {[%clk 0:01:23]}  Rxc6 {[%clk 0:02:26]} 25. cxb5 {[%clk 0:01:08]}  axb5 {[%clk 0:02:25]} 26. Nd5 {[%clk 0:01:09]}  Rxc1 {[%clk 0:02:12]} 27. Rxc1 {[%clk 0:01:00]}  Rc8 {[%clk 0:02:12]} 28. Bd4 {[%clk 0:00:48]}  Rxc1+ {[%clk 0:01:57]} 29. Qxc1 {[%clk 0:00:48]}  Qa8 {[%clk 0:01:40]} 30. Qd2 {[%clk 0:00:43]}  Bg7 {[%clk 0:01:35]} 31. h4 {[%clk 0:00:41]}  Nc5 {[%clk 0:01:31]} 32. Kh1 {[%clk 0:00:30]}  Ne6 {[%clk 0:01:29]} 33. Bg1 {[%clk 0:00:27]}  Ng4 {[%clk 0:01:25]} 34. Bh3 {[%clk 0:00:24]}  h5 {[%clk 0:01:24]} 35. gxh6 {[%clk 0:00:22]}  Bxh6 {[%clk 0:01:21]} 36. Qe2 {[%clk 0:00:16]}  Ne5 {[%clk 0:01:20]} 37. Qxb5 {[%clk 0:00:16]}  Qxa2 {[%clk 0:01:14]} 38. Bxe6 {[%clk 0:00:15]}  fxe6 {[%clk 0:01:12]} 39. Qe8+ {[%clk 0:00:16]}  Kg7 {[%clk 0:01:06]} 40. Qe7+ {[%clk 0:00:15]}  Nf7 {[%clk 0:01:07]} 41. Qxe6 {[%clk 0:00:10]}  Qb1 {[%clk 0:01:04]} 42. Qf6+ {[%clk 0:00:08]}  Kf8 {[%clk 0:01:05]} 43. Qxg6 {[%clk 0:00:08]}  Bg7 {[%clk 0:01:03]} 44. Qg4 {[%clk 0:00:07]}  Be5 {[%clk 0:01:03]} 45. Qc8+ {[%clk 0:00:05]}  Kg7 {[%clk 0:01:03]} 46. Qg4+ {[%clk 0:00:06]}  Kf8 {[%clk 0:01:03]} 47. b4 {[%clk 0:00:06]}  Nh6 {[%clk 0:00:58]} 48. Qc8+ {[%clk 0:00:06]}  Kg7 {[%clk 0:00:58]} 49. Qc4 {[%clk 0:00:04]}  Ng4 {[%clk 0:00:57]} 50. Qe2 {[%clk 0:00:04]}  Nf6 {[%clk 0:00:47]} 51. Nxf6 {[%clk 0:00:04]}  Kxf6 {[%clk 0:00:47]} 52. b5 {[%clk 0:00:05]}  Qb3 {[%clk 0:00:45]} 53. Qf2+ {[%clk 0:00:02]}  Ke7 {[%clk 0:00:46]} 54. Qg2 {[%clk 0:00:03]}  Qxb5 {[%clk 0:00:46]} 55. h5 {[%clk 0:00:04]}  Qe8 {[%clk 0:00:42]} 56. Qg4 {[%clk 0:00:03]}  Qf7 {[%clk 0:00:39]} 57. Kg2 {[%clk 0:00:04]}  d5 {[%clk 0:00:35]} 58. Bc5+ {[%clk 0:00:03]}  Bd6 {[%clk 0:00:34]} 59. Qg5+ {[%clk 0:00:02]}  Kd7 {[%clk 0:00:34]} 60. Bxd6 {[%clk 0:00:02]}  dxe4 {[%clk 0:00:31]} 61. Qg6 {[%clk 0:00:02]}  Qf3+ {[%clk 0:00:30]} 62. Kh2 {[%clk 0:00:02]}  e3 {[%clk 0:00:30]} 63. Bg3 {[%clk 0:00:02]}  e2 {[%clk 0:00:29]} 64. Qd6+ {[%clk 0:00:02]}  Ke8 {[%clk 0:00:28]} 65. Qe6+ {[%clk 0:00:02]}  Kd8 {[%clk 0:00:28]} 66. Qd6+ {[%clk 0:00:02]}  Ke8 {[%clk 0:00:29]} 67. Qg6+ {[%clk 0:00:03]}  Kd8 {[%clk 0:00:29]} 68. Qg8+ {[%clk 0:00:03]}  Kd7 {[%clk 0:00:29]} 69. Qg7+ {[%clk 0:00:03]}  Kc6 {[%clk 0:00:28]} 70. Qc7+ {[%clk 0:00:04]}  Kb5 {[%clk 0:00:28]} 71. Qd7+ {[%clk 0:00:04]}  Kc4 {[%clk 0:00:28]} 72. Qe6+ {[%clk 0:00:04]}  Kd3 {[%clk 0:00:27]} 73. Qe5 {[%clk 0:00:05]}  Qf1 {[%clk 0:00:25]} 74. h6 {[%clk 0:00:05]}  Qf7 {[%clk 0:00:22]} 75. Qd6+ {[%clk 0:00:05]}  Kc2 {[%clk 0:00:22]} 76. Qc5+ {[%clk 0:00:04]}  Kd1 {[%clk 0:00:22]} 77. Qd4+ {[%clk 0:00:05]}  Kc2 {[%clk 0:00:22]} 78. Qe4+ {[%clk 0:00:05]}  Kd2 {[%clk 0:00:22]} 79. h7 {[%clk 0:00:05]}  Qh5+ {[%clk 0:00:20]} 80. Kg2 {[%clk 0:00:05]}  Qh6 {[%clk 0:00:12]} 81. Qd4+ {[%clk 0:00:05]}  Kc2 {[%clk 0:00:12]} 82. h8=Q {[%clk 0:00:05]}  Qc6+ {[%clk 0:00:11]} 83. Kh2 {[%clk 0:00:04]}  e1=Q {[%clk 0:00:10]} 84. Qb2+ {[%clk 0:00:03]}  Kd3 {[%clk 0:00:10]} 85. Qhd4# {[%clk 0:00:03]} 1-0


[Site "https://www.chess.com"]

[Event "Titled Tuesday Blitz March 01 Early 2022"]
[White "Alavi, Sayed Javad"]
[Black "Kanyamarala, Tarun"]
[WhiteFideId "12500607"]
[BlackFideId "45004714"]
[WhiteElo "2475"]
[BlackElo "2144"]
[Result "0-1"]
[Round "10"]
[TimeControl "180+1"]
[Date "2022.03.01"]
[WhiteClock "0:00:03"]
[BlackClock "0:00:14"]

1. e4 {[%clk 0:03:00]}  c5 {[%clk 0:02:58]} 2. Nf3 {[%clk 0:03:00]}  Nc6 {[%clk 0:02:58]} 3. Bb5 {[%clk 0:03:00]}  g6 {[%clk 0:02:58]} 4. Bxc6 {[%clk 0:02:56]}  dxc6 {[%clk 0:02:58]} 5. d3 {[%clk 0:02:56]}  Bg7 {[%clk 0:02:58]} 6. h3 {[%clk 0:02:56]}  Nf6 {[%clk 0:02:54]} 7. Nc3 {[%clk 0:02:54]}  Nd7 {[%clk 0:02:50]} 8. Be3 {[%clk 0:02:54]}  e5 {[%clk 0:02:50]} 9. Qd2 {[%clk 0:02:51]}  h6 {[%clk 0:02:47]} 10. O-O-O {[%clk 0:02:46]}  b6 {[%clk 0:02:43]} 11. h4 {[%clk 0:02:16]}  Nf8 {[%clk 0:02:41]} 12. h5 {[%clk 0:02:16]}  g5 {[%clk 0:02:40]} 13. Ne2 {[%clk 0:02:17]}  Ne6 {[%clk 0:02:28]} 14. Ng3 {[%clk 0:02:16]}  Nf4 {[%clk 0:02:12]} 15. Bxf4 {[%clk 0:02:09]}  exf4 {[%clk 0:02:11]} 16. Nf5 {[%clk 0:02:09]}  Bxf5 {[%clk 0:02:10]} 17. exf5 {[%clk 0:02:10]}  O-O {[%clk 0:02:09]} 18. Kb1 {[%clk 0:01:28]}  Qf6 {[%clk 0:02:08]} 19. c3 {[%clk 0:01:05]}  Qxf5 {[%clk 0:02:08]} 20. Qc2 {[%clk 0:00:59]}  Rfe8 {[%clk 0:02:06]} 21. Rde1 {[%clk 0:00:54]}  Rxe1+ {[%clk 0:02:02]} 22. Rxe1 {[%clk 0:00:55]}  Rd8 {[%clk 0:02:02]} 23. Kc1 {[%clk 0:00:27]}  Bf6 {[%clk 0:01:57]} 24. Nd2 {[%clk 0:00:24]}  Qxd3 {[%clk 0:01:45]} 25. Re8+ {[%clk 0:00:24]}  Kg7 {[%clk 0:01:44]} 26. Qxd3 {[%clk 0:00:25]}  Rxd3 {[%clk 0:01:43]} 27. Ne4 {[%clk 0:00:26]}  Rd7 {[%clk 0:01:14]} 28. Rc8 {[%clk 0:00:24]}  Be5 {[%clk 0:01:00]} 29. Rxc6 {[%clk 0:00:23]}  Rc7 {[%clk 0:00:56]} 30. Rxc7 {[%clk 0:00:24]}  Bxc7 {[%clk 0:00:56]} 31. f3 {[%clk 0:00:25]}  f5 {[%clk 0:00:55]} 32. Nf2 {[%clk 0:00:25]}  c4 {[%clk 0:00:53]} 33. b3 {[%clk 0:00:18]}  b5 {[%clk 0:00:52]} 34. bxc4 {[%clk 0:00:15]}  bxc4 {[%clk 0:00:52]} 35. Kd2 {[%clk 0:00:15]}  Kf6 {[%clk 0:00:51]} 36. Nd1 {[%clk 0:00:13]}  g4 {[%clk 0:00:46]} 37. Ke2 {[%clk 0:00:11]}  Kg5 {[%clk 0:00:46]} 38. Nb2 {[%clk 0:00:11]}  Kxh5 {[%clk 0:00:46]} 39. Nxc4 {[%clk 0:00:11]}  Kh4 {[%clk 0:00:46]} 40. Kf2 {[%clk 0:00:08]}  h5 {[%clk 0:00:34]} 41. a3 {[%clk 0:00:05]}  Kg5 {[%clk 0:00:33]} 42. Kf1 {[%clk 0:00:04]}  Kf6 {[%clk 0:00:32]} 43. Nb2 {[%clk 0:00:04]}  Ke5 {[%clk 0:00:30]} 44. Nd3+ {[%clk 0:00:04]}  Kd5 {[%clk 0:00:30]} 45. Ke2 {[%clk 0:00:04]}  Kc4 {[%clk 0:00:29]} 46. Kd2 {[%clk 0:00:04]}  h4 {[%clk 0:00:25]} 47. Nb2+ {[%clk 0:00:02]}  Kb3 {[%clk 0:00:24]} 48. Nd1 {[%clk 0:00:03]}  Kxa3 {[%clk 0:00:16]} 49. Nf2 {[%clk 0:00:03]}  Bb6 {[%clk 0:00:14]} 50. Nd3 {[%clk 0:00:03]}  gxf3 {[%clk 0:00:13]} 51. gxf3 {[%clk 0:00:04]}  h3 {[%clk 0:00:14]} 52. Ne5 {[%clk 0:00:03]} 0-1


[Site "https://www.chess.com"]

[Event "Titled Tuesday Blitz March 01 Early 2022"]
[White "Aldokhin, Ivan"]
[Black "Obolenskikh, Dmitry"]
[WhiteFideId "24115720"]
[BlackFideId "4156013"]
[WhiteElo "2231"]
[BlackElo "2512"]
[Result "1/2-1/2"]
[Round "10"]
[TimeControl "180+1"]
[Date "2022.03.01"]
[WhiteClock "0:00:06"]
[BlackClock "0:00:20"]

1. e4 {[%clk 0:03:00]}  e5 {[%clk 0:03:00]} 2. Nf3 {[%clk 0:03:01]}  Nc6 {[%clk 0:03:00]} 3. Bb5 {[%clk 0:03:01]}  a6 {[%clk 0:02:59]} 4. Ba4 {[%clk 0:03:02]}  Nf6 {[%clk 0:02:59]} 5. O-O {[%clk 0:03:02]}  Be7 {[%clk 0:02:59]} 6. Re1 {[%clk 0:02:59]}  b5 {[%clk 0:03:00]} 7. Bb3 {[%clk 0:03:00]}  d6 {[%clk 0:03:00]} 8. c3 {[%clk 0:03:00]}  O-O {[%clk 0:03:01]} 9. d4 {[%clk 0:03:00]}  Bg4 {[%clk 0:02:59]} 10. d5 {[%clk 0:02:59]}  Na5 {[%clk 0:02:54]} 11. Bc2 {[%clk 0:03:00]}  Qc8 {[%clk 0:02:39]} 12. h3 {[%clk 0:02:58]}  Bd7 {[%clk 0:02:33]} 13. Nbd2 {[%clk 0:02:48]}  c6 {[%clk 0:02:31]} 14. dxc6 {[%clk 0:02:35]}  Qxc6 {[%clk 0:02:27]} 15. Nf1 {[%clk 0:02:31]}  Rfc8 {[%clk 0:02:27]} 16. Bd3 {[%clk 0:01:54]}  Nb7 {[%clk 0:02:21]} 17. Bg5 {[%clk 0:01:52]}  Nc5 {[%clk 0:02:19]} 18. Bc2 {[%clk 0:01:52]}  Bd8 {[%clk 0:02:06]} 19. Ng3 {[%clk 0:01:38]}  h6 {[%clk 0:01:51]} 20. Bd2 {[%clk 0:01:31]}  Bc7 {[%clk 0:01:45]} 21. Nh4 {[%clk 0:01:29]}  d5 {[%clk 0:01:37]} 22. Nhf5 {[%clk 0:01:17]}  Re8 {[%clk 0:01:36]} 23. exd5 {[%clk 0:01:02]}  Qxd5 {[%clk 0:01:36]} 24. Qe2 {[%clk 0:00:45]}  e4 {[%clk 0:01:31]} 25. Ne3 {[%clk 0:00:38]}  Qe5 {[%clk 0:01:25]} 26. Rad1 {[%clk 0:00:35]}  Rad8 {[%clk 0:01:21]} 27. b4 {[%clk 0:00:30]}  Nd3 {[%clk 0:01:18]} 28. Bxd3 {[%clk 0:00:22]}  exd3 {[%clk 0:01:19]} 29. Qf3 {[%clk 0:00:20]}  Qf4 {[%clk 0:00:52]} 30. Qxf4 {[%clk 0:00:14]}  Bxf4 {[%clk 0:00:52]} 31. Nef1 {[%clk 0:00:15]}  Rxe1 {[%clk 0:00:46]} 32. Rxe1 {[%clk 0:00:15]}  Bxd2 {[%clk 0:00:42]} 33. Nxd2 {[%clk 0:00:16]}  Be6 {[%clk 0:00:42]} 34. a3 {[%clk 0:00:15]}  Rc8 {[%clk 0:00:39]} 35. Nge4 {[%clk 0:00:12]}  Nxe4 {[%clk 0:00:38]} 36. Nxe4 {[%clk 0:00:12]}  Bd5 {[%clk 0:00:38]} 37. Nc5 {[%clk 0:00:12]}  a5 {[%clk 0:00:37]} 38. Rd1 {[%clk 0:00:09]}  axb4 {[%clk 0:00:36]} 39. axb4 {[%clk 0:00:08]}  Bc4 {[%clk 0:00:36]} 40. Nxd3 {[%clk 0:00:08]}  Bb3 {[%clk 0:00:36]} 41. Rc1 {[%clk 0:00:07]}  Bc4 {[%clk 0:00:35]} 42. Ne5 {[%clk 0:00:06]}  Be6 {[%clk 0:00:35]} 43. f3 {[%clk 0:00:06]}  f6 {[%clk 0:00:34]} 44. Nd3 {[%clk 0:00:06]}  Rc4 {[%clk 0:00:33]} 45. Kf2 {[%clk 0:00:05]}  Kf7 {[%clk 0:00:32]} 46. Ke3 {[%clk 0:00:05]}  g5 {[%clk 0:00:32]} 47. Nb2 {[%clk 0:00:05]}  Rc7 {[%clk 0:00:27]} 48. Nd3 {[%clk 0:00:06]}  h5 {[%clk 0:00:27]} 49. Nc5 {[%clk 0:00:06]}  Bc4 {[%clk 0:00:26]} 50. Ra1 {[%clk 0:00:06]}  Re7+ {[%clk 0:00:26]} 51. Kd4 {[%clk 0:00:06]}  h4 {[%clk 0:00:24]} 52. Ra6 {[%clk 0:00:04]}  Re2 {[%clk 0:00:22]} 53. Ne4 {[%clk 0:00:04]}  Rxg2 {[%clk 0:00:21]} 54. Rxf6+ {[%clk 0:00:04]}  Ke7 {[%clk 0:00:22]} 55. Rg6 {[%clk 0:00:03]}  Be2 {[%clk 0:00:20]} 56. Rxg5 {[%clk 0:00:03]}  Bxf3 {[%clk 0:00:19]} 57. Rxg2 {[%clk 0:00:02]}  Bxg2 {[%clk 0:00:19]} 58. Nf2 {[%clk 0:00:03]}  Bf1 {[%clk 0:00:19]} 59. Kc5 {[%clk 0:00:03]}  Kf6 {[%clk 0:00:20]} 60. Kd4 {[%clk 0:00:03]}  Kf5 {[%clk 0:00:20]} 61. Ke3 {[%clk 0:00:02]}  Ke5 {[%clk 0:00:20]} 62. Kf3 {[%clk 0:00:03]}  Kd5 {[%clk 0:00:20]} 63. Kg4 {[%clk 0:00:02]}  Kc4 {[%clk 0:00:19]} 64. Ne4 {[%clk 0:00:03]}  Bd3 {[%clk 0:00:17]} 65. Nd6+ {[%clk 0:00:03]}  Kxc3 {[%clk 0:00:18]} 66. Kxh4 {[%clk 0:00:02]}  Kxb4 {[%clk 0:00:18]} 67. Kg5 {[%clk 0:00:03]}  Kc5 {[%clk 0:00:19]} 68. Nxb5 {[%clk 0:00:03]}  Kxb5 {[%clk 0:00:19]} 69. h4 {[%clk 0:00:04]}  Kc4 {[%clk 0:00:19]} 70. h5 {[%clk 0:00:05]}  Kd5 {[%clk 0:00:20]} 71. h6 {[%clk 0:00:06]}  Ke6 {[%clk 0:00:20]} 72. h7 {[%clk 0:00:06]}  Bxh7 {[%clk 0:00:20]} 1/2-1/2


[Site "https://www.chess.com"]